[Event "Titled Tuesday Blitz March 07 Late 2023"]
[White "Howell, David W L"]
[Black "Kho, Darrell"]
[WhiteFideId "410608"]
[BlackFideId "1019317"]
[WhiteElo "2567"]
[BlackElo "2159"]
[Result "1-0"]
[Round "07"]
[TimeControl "180+2"]
[Date "2023.03.07"]
[WhiteClock "0:00:44"]
[BlackClock "0:00:01"]

1. e4 {[%clk 0:02:59]}  e6 {[%clk 0:02:59]} 2. d4 {[%clk 0:02:57]}  d5 {[%clk 0:03:00]} 3. Bd3 {[%clk 0:02:44]}  dxe4 {[%clk 0:02:58]} 4. Bxe4 {[%clk 0:02:45]}  Nf6 {[%clk 0:02:58]} 5. Bf3 {[%clk 0:02:45]}  Bd6 {[%clk 0:02:47]} 6. Ne2 {[%clk 0:02:41]}  O-O {[%clk 0:02:45]} 7. c4 {[%clk 0:02:38]}  e5 {[%clk 0:02:25]} 8. Nbc3 {[%clk 0:02:38]}  exd4 {[%clk 0:02:19]} 9. Qxd4 {[%clk 0:02:39]}  c6 {[%clk 0:01:59]} 10. Bg5 {[%clk 0:02:35]}  Be7 {[%clk 0:01:55]} 11. O-O-O {[%clk 0:02:34]}  Qxd4 {[%clk 0:01:50]} 12. Nxd4 {[%clk 0:02:35]}  h6 {[%clk 0:01:45]} 13. Bh4 {[%clk 0:02:28]}  Re8 {[%clk 0:01:24]} 14. Rhe1 {[%clk 0:02:27]}  Na6 {[%clk 0:01:16]} 15. Bxf6 {[%clk 0:02:24]}  gxf6 {[%clk 0:01:15]} 16. Ne4 {[%clk 0:02:19]}  f5 {[%clk 0:01:10]} 17. Nf6+ {[%clk 0:02:16]}  Bxf6 {[%clk 0:00:42]} 18. Rxe8+ {[%clk 0:02:16]}  Kg7 {[%clk 0:00:42]} 19. b3 {[%clk 0:01:51]}  Nc7 {[%clk 0:00:37]} 20. Ree1 {[%clk 0:01:47]}  Be6 {[%clk 0:00:35]} 21. Nxe6+ {[%clk 0:01:45]}  Nxe6 {[%clk 0:00:36]} 22. Rd7 {[%clk 0:01:46]}  Nc5 {[%clk 0:00:34]} 23. Rdd1 {[%clk 0:01:45]}  Ne6 {[%clk 0:00:28]} 24. g3 {[%clk 0:01:42]}  Nd4 {[%clk 0:00:28]} 25. Bh5 {[%clk 0:01:42]}  Rd8 {[%clk 0:00:26]} 26. Rd3 {[%clk 0:01:37]}  c5 {[%clk 0:00:26]} 27. f4 {[%clk 0:01:34]}  b6 {[%clk 0:00:23]} 28. Rde3 {[%clk 0:01:32]}  Nc6 {[%clk 0:00:19]} 29. Rd1 {[%clk 0:01:27]}  Nd4 {[%clk 0:00:15]} 30. Rdd3 {[%clk 0:01:27]}  Rd6 {[%clk 0:00:14]} 31. Kd1 {[%clk 0:01:26]}  Rd8 {[%clk 0:00:12]} 32. Rd2 {[%clk 0:01:24]}  Rd6 {[%clk 0:00:12]} 33. Re8 {[%clk 0:01:23]}  Rd7 {[%clk 0:00:10]} 34. Ke1 {[%clk 0:01:21]}  Rd6 {[%clk 0:00:08]} 35. Kf2 {[%clk 0:01:21]}  Rd7 {[%clk 0:00:07]} 36. Rd3 {[%clk 0:01:15]}  Rd6 {[%clk 0:00:07]} 37. Rd1 {[%clk 0:01:10]}  Rd7 {[%clk 0:00:07]} 38. Rd2 {[%clk 0:01:07]}  Rd6 {[%clk 0:00:08]} 39. Rd3 {[%clk 0:01:08]}  Rd7 {[%clk 0:00:08]} 40. Ra8 {[%clk 0:01:08]}  Re7 {[%clk 0:00:06]} 41. Re3 {[%clk 0:01:08]}  Rd7 {[%clk 0:00:06]} 42. Ree8 {[%clk 0:01:08]}  Ne6 {[%clk 0:00:05]} 43. Rg8+ {[%clk 0:00:57]}  Kh7 {[%clk 0:00:05]} 44. Be2 {[%clk 0:00:55]}  Nc7 {[%clk 0:00:05]} 45. Rac8 {[%clk 0:00:50]}  Ne6 {[%clk 0:00:04]} 46. Rge8 {[%clk 0:00:50]}  Nd4 {[%clk 0:00:04]} 47. Bd3 {[%clk 0:00:48]}  Kg6 {[%clk 0:00:03]} 48. Rg8+ {[%clk 0:00:48]}  Kh5 {[%clk 0:00:03]} 49. Rc6 {[%clk 0:00:43]}  Ne6 {[%clk 0:00:01]} 50. Be2# {[%clk 0:00:44]} 1-0


[Site "https://www.chess.com"]

[Event "Titled Tuesday Blitz March 07 Late 2023"]
[White "Rustemov, Alexander"]
[Black "Fedoseev, Vladimir"]
[WhiteFideId "4119002"]
[BlackFideId "24130737"]
[WhiteElo "2877"]
[BlackElo "2752"]
[Result "0-1"]
[Round "08"]
[TimeControl "180+2"]
[Date "2023.03.07"]
[WhiteClock "0:00:08"]
[BlackClock "0:00:23"]

1. d4 {[%clk 0:03:00]}  d5 {[%clk 0:02:58]} 2. c4 {[%clk 0:03:01]}  e6 {[%clk 0:02:58]} 3. Nc3 {[%clk 0:03:01]}  c6 {[%clk 0:02:57]} 4. e3 {[%clk 0:03:00]}  Nf6 {[%clk 0:02:57]} 5. Nf3 {[%clk 0:03:00]}  Nbd7 {[%clk 0:02:58]} 6. Qc2 {[%clk 0:03:01]}  b6 {[%clk 0:02:55]} 7. Bd3 {[%clk 0:02:59]}  Bb7 {[%clk 0:02:55]} 8. O-O {[%clk 0:02:59]}  dxc4 {[%clk 0:02:49]} 9. Bxc4 {[%clk 0:02:59]}  c5 {[%clk 0:02:50]} 10. Rd1 {[%clk 0:02:57]}  cxd4 {[%clk 0:02:48]} 11. Nxd4 {[%clk 0:02:52]}  Rc8 {[%clk 0:02:49]} 12. Qe2 {[%clk 0:02:48]}  Bb4 {[%clk 0:02:37]} 13. Bd2 {[%clk 0:02:45]}  O-O {[%clk 0:02:37]} 14. Rac1 {[%clk 0:02:39]}  Qe7 {[%clk 0:02:35]} 15. a3 {[%clk 0:02:35]}  Bc5 {[%clk 0:02:31]} 16. Be1 {[%clk 0:02:27]}  Ne5 {[%clk 0:02:30]} 17. Ba6 {[%clk 0:02:26]}  Rfd8 {[%clk 0:02:21]} 18. Bxb7 {[%clk 0:02:14]}  Qxb7 {[%clk 0:02:21]} 19. Nb3 {[%clk 0:02:11]}  Be7 {[%clk 0:02:21]} 20. Rxd8+ {[%clk 0:02:11]}  Rxd8 {[%clk 0:02:21]} 21. Rd1 {[%clk 0:02:08]}  Rc8 {[%clk 0:02:21]} 22. Qb5 {[%clk 0:01:52]}  Nc4 {[%clk 0:02:18]} 23. Nd2 {[%clk 0:01:51]}  Nxa3 {[%clk 0:02:00]} 24. Qb3 {[%clk 0:01:44]}  Qc6 {[%clk 0:01:59]} 25. Ra1 {[%clk 0:01:39]}  b5 {[%clk 0:01:20]} 26. Rxa3 {[%clk 0:01:37]}  Bxa3 {[%clk 0:01:18]} 27. Qxa3 {[%clk 0:01:36]}  Qb6 {[%clk 0:01:19]} 28. Qb4 {[%clk 0:01:30]}  a6 {[%clk 0:01:19]} 29. Nb3 {[%clk 0:01:24]}  h6 {[%clk 0:01:19]} 30. Kf1 {[%clk 0:01:12]}  Rc4 {[%clk 0:01:18]} 31. Qe7 {[%clk 0:01:11]}  a5 {[%clk 0:01:13]} 32. Nd2 {[%clk 0:01:07]}  Rc8 {[%clk 0:01:11]} 33. Nce4 {[%clk 0:00:54]}  Nxe4 {[%clk 0:01:10]} 34. Nxe4 {[%clk 0:00:54]}  b4 {[%clk 0:01:11]} 35. f3 {[%clk 0:00:51]}  Qa6+ {[%clk 0:01:10]} 36. Kf2 {[%clk 0:00:50]}  Rc2+ {[%clk 0:01:09]} 37. Bd2 {[%clk 0:00:47]}  Qc8 {[%clk 0:01:06]} 38. Ke1 {[%clk 0:00:41]}  Rxb2 {[%clk 0:01:02]} 39. Nd6 {[%clk 0:00:34]}  Qf8 {[%clk 0:00:57]} 40. Qc7 {[%clk 0:00:28]}  a4 {[%clk 0:00:55]} 41. Nc4 {[%clk 0:00:20]}  Rb1+ {[%clk 0:00:55]} 42. Ke2 {[%clk 0:00:21]}  a3 {[%clk 0:00:55]} 43. Qa7 {[%clk 0:00:21]}  Qd8 {[%clk 0:00:46]} 44. Ne5 {[%clk 0:00:16]}  Qe8 {[%clk 0:00:40]} 45. Qa5 {[%clk 0:00:11]}  b3 {[%clk 0:00:25]} 46. Qxa3 {[%clk 0:00:08]}  Qb5+ {[%clk 0:00:25]} 47. Nd3 {[%clk 0:00:09]}  b2 {[%clk 0:00:26]} 48. Qa8+ {[%clk 0:00:09]}  Kh7 {[%clk 0:00:25]} 49. Qe4+ {[%clk 0:00:08]}  f5 {[%clk 0:00:23]} 50. Qxe6 {[%clk 0:00:08]}  Rg1 {[%clk 0:00:23]} 0-1


[Site "https://www.chess.com"]

[Event "Titled Tuesday Blitz March 07 Late 2023"]
[White "Durarbayli, Vasif"]
[Black "Naroditsky, Daniel"]
[WhiteFideId "13402935"]
[BlackFideId "2026961"]
[WhiteElo "2543"]
[BlackElo "2633"]
[Result "0-1"]
[Round "08"]
[TimeControl "180+2"]
[Date "2023.03.07"]
[WhiteClock "0:00:02"]
[BlackClock "0:00:07"]

1. e4 {[%clk 0:02:58]}  c5 {[%clk 0:03:00]} 2. Nf3 {[%clk 0:02:58]}  d6 {[%clk 0:03:01]} 3. d4 {[%clk 0:02:58]}  cxd4 {[%clk 0:03:02]} 4. Nxd4 {[%clk 0:02:58]}  Nf6 {[%clk 0:03:02]} 5. Nc3 {[%clk 0:02:58]}  a6 {[%clk 0:03:03]} 6. Be2 {[%clk 0:02:58]}  e5 {[%clk 0:03:04]} 7. Nb3 {[%clk 0:02:59]}  Be7 {[%clk 0:03:04]} 8. Be3 {[%clk 0:02:59]}  Be6 {[%clk 0:03:04]} 9. O-O {[%clk 0:03:00]}  O-O {[%clk 0:03:04]} 10. Re1 {[%clk 0:03:00]}  Nbd7 {[%clk 0:03:03]} 11. a4 {[%clk 0:02:59]}  Rc8 {[%clk 0:02:55]} 12. a5 {[%clk 0:02:57]}  Re8 {[%clk 0:02:48]} 13. Bf3 {[%clk 0:02:53]}  Qc7 {[%clk 0:02:45]} 14. h3 {[%clk 0:02:51]}  Nf8 {[%clk 0:02:44]} 15. Nd2 {[%clk 0:02:38]}  Ng6 {[%clk 0:02:43]} 16. Nf1 {[%clk 0:02:31]}  h6 {[%clk 0:02:26]} 17. Qd2 {[%clk 0:01:56]}  Nh4 {[%clk 0:02:19]} 18. Be2 {[%clk 0:01:53]}  Qd7 {[%clk 0:02:19]} 19. Kh2 {[%clk 0:01:34]}  Rxc3 {[%clk 0:01:55]} 20. Qxc3 {[%clk 0:01:29]}  Nxe4 {[%clk 0:01:55]} 21. Qd3 {[%clk 0:01:20]}  d5 {[%clk 0:01:54]} 22. c4 {[%clk 0:01:03]}  Rd8 {[%clk 0:01:22]} 23. cxd5 {[%clk 0:00:58]}  Bxd5 {[%clk 0:01:23]} 24. Red1 {[%clk 0:00:51]}  Qe6 {[%clk 0:01:13]} 25. f3 {[%clk 0:00:39]}  Ng5 {[%clk 0:01:05]} 26. Bxg5 {[%clk 0:00:26]}  Bxg5 {[%clk 0:01:06]} 27. Qc3 {[%clk 0:00:26]}  e4 {[%clk 0:01:03]} 28. fxe4 {[%clk 0:00:20]}  Qxe4 {[%clk 0:01:01]} 29. Bf3 {[%clk 0:00:08]}  Nxf3+ {[%clk 0:01:00]} 30. gxf3 {[%clk 0:00:05]}  Qe2+ {[%clk 0:00:51]} 31. Kg3 {[%clk 0:00:05]}  Rd6 {[%clk 0:00:39]} 32. Re1 {[%clk 0:00:05]}  Bf4+ {[%clk 0:00:23]} 33. Kxf4 {[%clk 0:00:05]}  Rf6+ {[%clk 0:00:23]} 34. Qxf6 {[%clk 0:00:01]}  Qxf3+ {[%clk 0:00:22]} 35. Ke5 {[%clk 0:00:02]}  gxf6+ {[%clk 0:00:21]} 36. Kd6 {[%clk 0:00:03]}  Be6 {[%clk 0:00:19]} 37. Ke7 {[%clk 0:00:01]}  f5 {[%clk 0:00:14]} 38. Ne3 {[%clk 0:00:01]}  f4 {[%clk 0:00:09]} 39. Ng4 {[%clk 0:00:01]}  Kg7 {[%clk 0:00:06]} 40. Ne5 {[%clk 0:00:01]}  Qd5 {[%clk 0:00:06]} 41. Rg1+ {[%clk 0:00:02]}  Kh7 {[%clk 0:00:06]} 42. Kf6 {[%clk 0:00:02]}  Qd8# {[%clk 0:00:07]} 0-1


[Site "https://www.chess.com"]

[Event "Titled Tuesday Blitz March 07 Late 2023"]
[White "Yu, Yangyi"]
[Black "Indjic, Aleksandar"]
[WhiteFideId "8603820"]
[BlackFideId "911925"]
[WhiteElo "2783"]
[BlackElo "2614"]
[Result "0-1"]
[Round "08"]
[TimeControl "180+2"]
[Date "2023.03.07"]
[WhiteClock "0:00:01"]
[BlackClock "0:00:08"]

1. Nf3 {[%clk 0:03:00]}  c5 {[%clk 0:02:59]} 2. c4 {[%clk 0:02:58]}  Nc6 {[%clk 0:02:57]} 3. Nc3 {[%clk 0:02:57]}  g6 {[%clk 0:02:57]} 4. e3 {[%clk 0:02:52]}  Bg7 {[%clk 0:02:57]} 5. d4 {[%clk 0:02:53]}  d6 {[%clk 0:02:58]} 6. Be2 {[%clk 0:02:51]}  Nf6 {[%clk 0:02:57]} 7. d5 {[%clk 0:02:49]}  Na5 {[%clk 0:02:56]} 8. O-O {[%clk 0:02:49]}  O-O {[%clk 0:02:55]} 9. Rb1 {[%clk 0:02:45]}  e5 {[%clk 0:02:54]} 10. e4 {[%clk 0:02:38]}  b6 {[%clk 0:02:54]} 11. a3 {[%clk 0:02:37]}  Bd7 {[%clk 0:02:54]} 12. b4 {[%clk 0:02:37]}  Nb7 {[%clk 0:02:54]} 13. Ne1 {[%clk 0:02:34]}  Rc8 {[%clk 0:02:45]} 14. Be3 {[%clk 0:02:27]}  h6 {[%clk 0:02:43]} 15. Qd2 {[%clk 0:02:26]}  Kh7 {[%clk 0:02:42]} 16. f3 {[%clk 0:02:22]}  Qe7 {[%clk 0:02:41]} 17. Nb5 {[%clk 0:02:17]}  Bxb5 {[%clk 0:02:40]} 18. cxb5 {[%clk 0:02:17]}  Nh5 {[%clk 0:02:39]} 19. Nd3 {[%clk 0:02:16]}  f5 {[%clk 0:02:33]} 20. Rbc1 {[%clk 0:02:07]}  f4 {[%clk 0:02:31]} 21. Bf2 {[%clk 0:02:07]}  Bf6 {[%clk 0:02:31]} 22. Qe1 {[%clk 0:01:46]}  Ng7 {[%clk 0:02:31]} 23. a4 {[%clk 0:01:45]}  g5 {[%clk 0:02:30]} 24. a5 {[%clk 0:01:45]}  h5 {[%clk 0:02:29]} 25. Qd2 {[%clk 0:01:30]}  Qd7 {[%clk 0:02:15]} 26. Rc2 {[%clk 0:01:17]}  Nd8 {[%clk 0:02:14]} 27. Ra1 {[%clk 0:01:15]}  Nf7 {[%clk 0:02:10]} 28. axb6 {[%clk 0:01:15]}  axb6 {[%clk 0:02:10]} 29. Rca2 {[%clk 0:01:08]}  Rc7 {[%clk 0:02:08]} 30. Nb2 {[%clk 0:01:06]}  Rb7 {[%clk 0:02:06]} 31. Nc4 {[%clk 0:00:58]}  g4 {[%clk 0:01:51]} 32. Qd1 {[%clk 0:00:55]}  Nh6 {[%clk 0:01:50]} 33. bxc5 {[%clk 0:00:52]}  dxc5 {[%clk 0:01:48]} 34. Ra6 {[%clk 0:00:50]}  Qd8 {[%clk 0:01:29]} 35. Ra7 {[%clk 0:00:41]}  Rff7 {[%clk 0:01:20]} 36. Rxb7 {[%clk 0:00:39]}  Rxb7 {[%clk 0:01:20]} 37. fxg4 {[%clk 0:00:39]}  Bh4 {[%clk 0:01:16]} 38. Bxh4 {[%clk 0:00:33]}  Qxh4 {[%clk 0:01:17]} 39. Nxe5 {[%clk 0:00:33]}  Qf6 {[%clk 0:01:12]} 40. g5 {[%clk 0:00:27]}  Qxe5 {[%clk 0:01:11]} 41. gxh6 {[%clk 0:00:27]}  Kxh6 {[%clk 0:01:12]} 42. Ra8 {[%clk 0:00:19]}  Kh7 {[%clk 0:01:11]} 43. h3 {[%clk 0:00:15]}  Rf7 {[%clk 0:01:04]} 44. Bf3 {[%clk 0:00:15]}  Rf6 {[%clk 0:01:04]} 45. Rc8 {[%clk 0:00:13]}  Kh6 {[%clk 0:00:54]} 46. Rc6 {[%clk 0:00:13]}  Ne8 {[%clk 0:00:52]} 47. Qa4 {[%clk 0:00:10]}  Nd6 {[%clk 0:00:48]} 48. Qa8 {[%clk 0:00:10]}  Kg5 {[%clk 0:00:25]} 49. Qg8+ {[%clk 0:00:07]}  Rg6 {[%clk 0:00:14]} 50. Qd8+ {[%clk 0:00:07]}  Rf6 {[%clk 0:00:14]} 51. Kh2 {[%clk 0:00:06]}  Kh4 {[%clk 0:00:13]} 52. Rxb6 {[%clk 0:00:06]}  Qg5 {[%clk 0:00:13]} 53. Kh1 {[%clk 0:00:05]}  Qe5 {[%clk 0:00:12]} 54. Rc6 {[%clk 0:00:05]}  Kg3 {[%clk 0:00:10]} 55. Qg8+ {[%clk 0:00:03]}  Kf2 {[%clk 0:00:10]} 56. Qa8 {[%clk 0:00:02]}  Qb2 {[%clk 0:00:09]} 57. Kh2 {[%clk 0:00:01]}  Qb1 {[%clk 0:00:08]} 0-1


[Site "https://www.chess.com"]

[Event "Titled Tuesday Blitz March 07 Late 2023"]
[White "Andreikin, Dmitry"]
[Black "Maksimovic, Bojan"]
[WhiteFideId "4158814"]
[BlackFideId "14408120"]
[WhiteElo "2736"]
[BlackElo "2468"]
[Result "1-0"]
[Round "08"]
[TimeControl "180+2"]
[Date "2023.03.07"]
[WhiteClock "0:00:31"]
[BlackClock "0:00:01"]

1. Nf3 {[%clk 0:03:00]}  Nf6 {[%clk 0:02:58]} 2. c4 {[%clk 0:03:00]}  g6 {[%clk 0:02:58]} 3. b4 {[%clk 0:03:00]}  Bg7 {[%clk 0:02:58]} 4. Bb2 {[%clk 0:03:00]}  d6 {[%clk 0:02:58]} 5. g3 {[%clk 0:02:59]}  Nbd7 {[%clk 0:02:56]} 6. Bg2 {[%clk 0:02:59]}  O-O {[%clk 0:02:56]} 7. O-O {[%clk 0:02:59]}  e5 {[%clk 0:02:56]} 8. d3 {[%clk 0:02:59]}  Re8 {[%clk 0:02:53]} 9. Nc3 {[%clk 0:02:57]}  c6 {[%clk 0:02:51]} 10. Qb3 {[%clk 0:02:55]}  h6 {[%clk 0:02:41]} 11. Rfd1 {[%clk 0:02:54]}  Qe7 {[%clk 0:02:38]} 12. Nd2 {[%clk 0:02:50]}  h5 {[%clk 0:02:26]} 13. b5 {[%clk 0:02:46]}  Nc5 {[%clk 0:02:24]} 14. Qc2 {[%clk 0:02:46]}  cxb5 {[%clk 0:02:03]} 15. Nxb5 {[%clk 0:02:42]}  h4 {[%clk 0:02:02]} 16. Ba3 {[%clk 0:02:35]}  h3 {[%clk 0:02:00]} 17. Bh1 {[%clk 0:02:34]}  Ng4 {[%clk 0:01:51]} 18. Ne4 {[%clk 0:02:10]}  Nxe4 {[%clk 0:00:37]} 19. dxe4 {[%clk 0:02:11]}  Qg5 {[%clk 0:00:38]} 20. Nc7 {[%clk 0:01:56]}  Be6 {[%clk 0:00:38]} 21. Bf3 {[%clk 0:01:50]}  Rac8 {[%clk 0:00:27]} 22. Nxe8 {[%clk 0:01:49]}  Rxe8 {[%clk 0:00:28]} 23. Bxd6 {[%clk 0:01:41]}  Bh6 {[%clk 0:00:25]} 24. Bc5 {[%clk 0:01:32]}  b6 {[%clk 0:00:25]} 25. Bxg4 {[%clk 0:01:32]}  Qxg4 {[%clk 0:00:24]} 26. f3 {[%clk 0:01:31]}  Qg5 {[%clk 0:00:21]} 27. Bf2 {[%clk 0:01:32]}  Rc8 {[%clk 0:00:21]} 28. Qa4 {[%clk 0:01:11]}  Rxc4 {[%clk 0:00:21]} 29. Qe8+ {[%clk 0:01:09]}  Kh7 {[%clk 0:00:15]} 30. Rd8 {[%clk 0:00:50]}  Rc1+ {[%clk 0:00:13]} 31. Be1 {[%clk 0:00:50]}  Qe3+ {[%clk 0:00:10]} 32. Kf1 {[%clk 0:00:50]}  Bg7 {[%clk 0:00:04]} 33. Rxc1 {[%clk 0:00:43]}  Qxc1 {[%clk 0:00:05]} 34. Qe7 {[%clk 0:00:39]}  Qc2 {[%clk 0:00:02]} 35. Qh4+ {[%clk 0:00:33]}  Bh6 {[%clk 0:00:02]} 36. Bd2 {[%clk 0:00:31]}  Qd1+ {[%clk 0:00:02]} 37. Kf2 {[%clk 0:00:31]}  g5 {[%clk 0:00:01]} 38. Bxg5 {[%clk 0:00:31]} 1-0


[Site "https://www.chess.com"]

[Event "Titled Tuesday Blitz March 07 Late 2023"]
[White "Pakleza, Zbigniew"]
[Black "Kamsky, Gata"]
[WhiteFideId "1119290"]
[BlackFideId "2000024"]
[WhiteElo "2410"]
[BlackElo "2666"]
[Result "1/2-1/2"]
[Round "08"]
[TimeControl "180+2"]
[Date "2023.03.07"]
[WhiteClock "0:00:07"]
[BlackClock "0:00:27"]

1. d4 {[%clk 0:02:50]}  Nf6 {[%clk 0:02:58]} 2. Nf3 {[%clk 0:02:51]}  g6 {[%clk 0:02:58]} 3. Bf4 {[%clk 0:02:51]}  Bg7 {[%clk 0:02:56]} 4. e3 {[%clk 0:02:52]}  d6 {[%clk 0:02:55]} 5. h3 {[%clk 0:02:52]}  O-O {[%clk 0:02:33]} 6. Be2 {[%clk 0:02:52]}  c5 {[%clk 0:02:26]} 7. c3 {[%clk 0:02:52]}  Qb6 {[%clk 0:02:25]} 8. Qb3 {[%clk 0:02:52]}  Be6 {[%clk 0:02:25]} 9. Qxb6 {[%clk 0:02:52]}  axb6 {[%clk 0:02:25]} 10. a3 {[%clk 0:02:53]}  Bd7 {[%clk 0:02:17]} 11. Nbd2 {[%clk 0:02:53]}  Nd5 {[%clk 0:02:14]} 12. Bg3 {[%clk 0:02:50]}  b5 {[%clk 0:02:14]} 13. e4 {[%clk 0:02:41]}  Nb6 {[%clk 0:02:14]} 14. O-O {[%clk 0:02:39]}  Na4 {[%clk 0:02:12]} 15. Rab1 {[%clk 0:02:36]}  c4 {[%clk 0:02:10]} 16. Bd1 {[%clk 0:02:21]}  Nc6 {[%clk 0:02:06]} 17. Bc2 {[%clk 0:02:12]}  e5 {[%clk 0:02:06]} 18. dxe5 {[%clk 0:02:04]}  dxe5 {[%clk 0:02:05]} 19. Rfd1 {[%clk 0:02:05]}  Be6 {[%clk 0:01:55]} 20. Nf1 {[%clk 0:01:52]}  f6 {[%clk 0:01:50]} 21. Ne3 {[%clk 0:01:49]}  Rfd8 {[%clk 0:01:45]} 22. Kf1 {[%clk 0:01:41]}  Rxd1+ {[%clk 0:01:42]} 23. Bxd1 {[%clk 0:01:42]}  Rd8 {[%clk 0:01:38]} 24. Ke1 {[%clk 0:01:38]}  Na5 {[%clk 0:01:31]} 25. Bxa4 {[%clk 0:01:27]}  bxa4 {[%clk 0:01:31]} 26. Rd1 {[%clk 0:01:28]}  Rxd1+ {[%clk 0:01:29]} 27. Kxd1 {[%clk 0:01:29]}  b5 {[%clk 0:01:28]} 28. Ne1 {[%clk 0:01:24]}  Bh6 {[%clk 0:01:23]} 29. N1c2 {[%clk 0:01:22]}  Nb7 {[%clk 0:01:22]} 30. Nd5 {[%clk 0:00:48]}  Kf7 {[%clk 0:01:18]} 31. Ncb4 {[%clk 0:00:41]}  Nc5 {[%clk 0:01:17]} 32. f3 {[%clk 0:00:42]}  Nd3 {[%clk 0:01:03]} 33. Kc2 {[%clk 0:00:22]}  Nxb4+ {[%clk 0:00:57]} 34. Nxb4 {[%clk 0:00:23]}  Be3 {[%clk 0:00:56]} 35. Kd1 {[%clk 0:00:17]}  h5 {[%clk 0:00:55]} 36. Nc2 {[%clk 0:00:17]}  Bc5 {[%clk 0:00:53]} 37. Ke2 {[%clk 0:00:16]}  Ke7 {[%clk 0:00:51]} 38. Bf2 {[%clk 0:00:15]}  Bd6 {[%clk 0:00:51]} 39. Nb4 {[%clk 0:00:14]}  Kd7 {[%clk 0:00:46]} 40. Be3 {[%clk 0:00:14]}  f5 {[%clk 0:00:46]} 41. Bf2 {[%clk 0:00:10]}  g5 {[%clk 0:00:44]} 42. Be3 {[%clk 0:00:07]}  f4 {[%clk 0:00:44]} 43. Bf2 {[%clk 0:00:06]}  g4 {[%clk 0:00:45]} 44. hxg4 {[%clk 0:00:07]}  hxg4 {[%clk 0:00:45]} 45. Bb6 {[%clk 0:00:07]}  g3 {[%clk 0:00:38]} 46. Bg1 {[%clk 0:00:06]}  Bxb4 {[%clk 0:00:26]} 47. axb4 {[%clk 0:00:05]}  Bf7 {[%clk 0:00:24]} 48. Ke1 {[%clk 0:00:05]}  Ke6 {[%clk 0:00:25]} 49. Ke2 {[%clk 0:00:05]}  Kd6 {[%clk 0:00:25]} 50. Ke1 {[%clk 0:00:06]}  Ke6 {[%clk 0:00:26]} 51. Ke2 {[%clk 0:00:06]}  Kd6 {[%clk 0:00:26]} 52. Ke1 {[%clk 0:00:07]}  Ke6 {[%clk 0:00:27]} 1/2-1/2


[Site "https://www.chess.com"]

[Event "Titled Tuesday Blitz March 07 Late 2023"]
[White "EREBUNI91"]
[Black "Bortnyk, Olexandr"]
[BlackFideId "14120828"]
[WhiteElo "2749"]
[BlackElo "2734"]
[Result "0-1"]
[Round "08"]
[TimeControl "180+2"]
[Date "2023.03.07"]
[WhiteClock "0:00:08"]
[BlackClock "0:00:29"]

1. e4 {[%clk 0:03:00]}  Nf6 {[%clk 0:02:57]} 2. e5 {[%clk 0:03:00]}  Nd5 {[%clk 0:02:57]} 3. d4 {[%clk 0:03:00]}  d6 {[%clk 0:02:58]} 4. c4 {[%clk 0:02:57]}  Nb6 {[%clk 0:02:58]} 5. exd6 {[%clk 0:02:58]}  exd6 {[%clk 0:02:59]} 6. Bd3 {[%clk 0:02:55]}  Be7 {[%clk 0:02:59]} 7. Ne2 {[%clk 0:02:55]}  O-O {[%clk 0:03:00]} 8. Be3 {[%clk 0:02:53]}  Na6 {[%clk 0:03:00]} 9. a3 {[%clk 0:02:37]}  c6 {[%clk 0:02:58]} 10. Nbc3 {[%clk 0:02:30]}  d5 {[%clk 0:02:58]} 11. c5 {[%clk 0:02:15]}  Nd7 {[%clk 0:02:57]} 12. O-O {[%clk 0:02:13]}  Nc7 {[%clk 0:02:57]} 13. b4 {[%clk 0:02:06]}  Ne6 {[%clk 0:02:45]} 14. a4 {[%clk 0:02:02]}  Bf6 {[%clk 0:02:28]} 15. Bc2 {[%clk 0:01:49]}  g6 {[%clk 0:02:27]} 16. f4 {[%clk 0:01:39]}  Re8 {[%clk 0:02:26]} 17. Qd2 {[%clk 0:01:32]}  Ng7 {[%clk 0:02:23]} 18. f5 {[%clk 0:01:25]}  Nf8 {[%clk 0:02:14]} 19. Ng3 {[%clk 0:01:15]}  g5 {[%clk 0:02:03]} 20. Rae1 {[%clk 0:01:11]}  h6 {[%clk 0:02:01]} 21. Qd1 {[%clk 0:01:06]}  Bd7 {[%clk 0:01:57]} 22. Kh1 {[%clk 0:00:58]}  Qc7 {[%clk 0:01:56]} 23. Nh5 {[%clk 0:00:55]}  Nxh5 {[%clk 0:01:56]} 24. Qxh5 {[%clk 0:00:56]}  Kg7 {[%clk 0:01:57]} 25. h4 {[%clk 0:00:44]}  Nh7 {[%clk 0:01:54]} 26. Rf3 {[%clk 0:00:39]}  Re7 {[%clk 0:01:33]} 27. Rh3 {[%clk 0:00:36]}  Rae8 {[%clk 0:01:30]} 28. Nd1 {[%clk 0:00:33]}  a5 {[%clk 0:01:22]} 29. hxg5 {[%clk 0:00:30]}  Bxg5 {[%clk 0:01:22]} 30. Rf1 {[%clk 0:00:22]}  Rxe3 {[%clk 0:00:59]} 31. Nxe3 {[%clk 0:00:19]}  Rxe3 {[%clk 0:01:00]} 32. Rxe3 {[%clk 0:00:17]}  Bxe3 {[%clk 0:01:01]} 33. Qe2 {[%clk 0:00:13]}  Bg5 {[%clk 0:00:50]} 34. b5 {[%clk 0:00:12]}  cxb5 {[%clk 0:00:41]} 35. axb5 {[%clk 0:00:11]}  Nf6 {[%clk 0:00:42]} 36. Qe5 {[%clk 0:00:10]}  Qxe5 {[%clk 0:00:36]} 37. dxe5 {[%clk 0:00:11]}  Ng4 {[%clk 0:00:37]} 38. Re1 {[%clk 0:00:09]}  Bxb5 {[%clk 0:00:37]} 39. f6+ {[%clk 0:00:07]}  Kf8 {[%clk 0:00:36]} 40. Bf5 {[%clk 0:00:08]}  Ne3 {[%clk 0:00:29]} 41. Kg1 {[%clk 0:00:08]}  Nxf5 {[%clk 0:00:29]} 0-1


[Site "https://www.chess.com"]